[Event "Orlicka sachovnice 2023"]
[Site "Usti nad Orlici, Czech Republic"]
[Date "2023.05.06"]
[Round "9.3"]
[White "Jun, Robert"]
[Black "Vuova, Karolina"]
[Result "1/2-1/2"]
[TimeControl "12 min + 3 s"]
[WhiteElo "1424"]
[BlackElo "1300"]

1. e4 {[%clk 00:12:05]} e5 {[%clk 00:12:05]} {[%emt 00:00:02]} 2. Nf3 {[%clk
00:12:07]} Nc6 {[%clk 00:12:07]} {[%emt 00:00:01]} 3. Bb5 {[%clk 00:12:09]} Bc5
{[%clk 00:12:07]} {[%emt 00:00:03]} 4. O-O {[%clk 00:12:10]} {[%emt 00:00:02]}
d6 {[%clk 00:12:05]} {[%emt 00:00:05]} 5. c3 {[%clk 00:12:09]} {[%emt
00:00:04]} Nf6 {[%clk 00:12:04]} {[%emt 00:00:04]} 6. d4 {[%clk 00:12:11]} exd4
{[%clk 00:12:05]} {[%emt 00:00:02]} 7. cxd4 {[%clk 00:12:14]} a6 {[%clk
00:11:45]} {[%emt 00:00:23]} 8. Bxc6+ {[%clk 00:12:13]} {[%emt 00:00:03]} bxc6
{[%clk 00:11:47]} {[%emt 00:00:02]} 9. dxc5 {[%clk 00:12:14]} {[%emt 00:00:02]}
O-O {[%clk 00:11:20]} {[%emt 00:00:30]} 10. cxd6 {[%clk 00:12:14]} {[%emt
00:00:03]} cxd6 {[%clk 00:11:22]} 11. Bg5 {[%clk 00:12:14]} {[%emt 00:00:03]}
h6 {[%clk 00:11:09]} {[%emt 00:00:17]} 12. Bh4 {[%clk 00:12:15]} Re8 {[%clk
00:10:51]} {[%emt 00:00:21]} 13. Re1 {[%clk 00:12:12]} {[%emt 00:00:06]} Bg4
{[%clk 00:10:10]} {[%emt 00:00:44]} 14. h3 {[%clk 00:12:10]} {[%emt 00:00:04]}
Bh5 {[%clk 00:10:08]} {[%emt 00:00:05]} 15. Nc3 {[%clk 00:12:01]} {[%emt
00:00:13]} g5 {[%clk 00:08:48]} {[%emt 00:01:23]} 16. Bg3 {[%clk 00:11:59]}
{[%emt 00:00:04]} d5 {[%clk 00:07:56]} {[%emt 00:00:56]} 17. exd5 {[%clk
00:11:28]} {[%emt 00:00:34]} Rxe1+ {[%clk 00:07:35]} {[%emt 00:00:23]} 18. Qxe1
{[%clk 00:11:29]} {[%emt 00:00:02]} Bxf3 {[%clk 00:07:27]} {[%emt 00:00:11]} 19.
gxf3 {[%clk 00:11:30]} {[%emt 00:00:02]} cxd5 {[%clk 00:07:15]} {[%emt
00:00:15]} 20. Rd1 {[%clk 00:11:21]} {[%emt 00:00:12]} d4 {[%clk 00:06:47]}
{[%emt 00:00:31]} 21. Ne4 {[%clk 00:11:18]} {[%emt 00:00:06]} Nh5 {[%clk
00:06:03]} {[%emt 00:00:47]} 22. Qd2 {[%clk 00:11:08]} {[%emt 00:00:12]} f5
{[%clk 00:05:25]} {[%emt 00:00:42]} 23. Nc5 {[%clk 00:10:40]} {[%emt 00:00:31]}
f4 {[%clk 00:04:52]} {[%emt 00:00:36]} 24. Bh2 {[%clk 00:10:15]} {[%emt
00:00:28]} Qc8 {[%clk 00:04:40]} {[%emt 00:00:15]} 25. Qc2 {[%clk 00:10:12]}
{[%emt 00:00:07]} Qxh3 {[%clk 00:04:38]} {[%emt 00:00:05]} 26. Qg6+ {[%clk
00:10:13]} {[%emt 00:00:01]} Ng7 {[%clk 00:04:14]} {[%emt 00:00:28]} 27. Rd3
{[%clk 00:05:31]} {[%emt 00:04:45]} Re8 {[%clk 00:03:56]} {[%emt 00:00:21]} 28.
Ne4 {[%clk 00:04:55]} {[%emt 00:00:38]} Re6 {[%clk 00:03:42]} {[%emt 00:00:18]}
29. Nf6+ {[%clk 00:04:34]} {[%emt 00:00:24]} Kf8 {[%clk 00:03:06]} {[%emt
00:00:38]} 30. Rd1 {[%clk 00:03:45]} {[%emt 00:00:53]} Qxf3 {[%clk 00:02:46]}
{[%emt 00:00:24]} 31. Nd7+ {[%clk 00:03:01]} {[%emt 00:00:47]} Kg8 {[%clk
00:02:20]} {[%emt 00:02:51]} 1/2-1/2

[Event "Orlicka sachovnice 2023"]
[Site "Usti nad Orlici, Czech Republic"]
[Date "2023.05.06"]
[Round "9.4"]
[White "Findejs, David"]
[Black "Jun, Rostislav"]
[Result "0-1"]
[TimeControl "12 min + 3 s"]
[WhiteElo "1378"]
[BlackElo "1370"]

1. d4 {[%clk 00:12:05]} {[%emt 00:00:01]} e6 {[%clk 00:12:00]} {[%emt
00:00:06]} 2. c4 {[%clk 00:12:05]} {[%emt 00:00:02]} d5 {[%clk 00:12:02]}
{[%emt 00:00:02]} 3. Nc3 {[%clk 00:12:06]} {[%emt 00:00:01]} Nf6 {[%clk
00:12:03]} {[%emt 00:00:02]} 4. Nf3 {[%clk 00:12:07]} {[%emt 00:00:02]} Be7
{[%clk 00:11:19]} {[%emt 00:00:47]} 5. Bg5 {[%clk 00:12:05]} {[%emt 00:00:05]}
O-O {[%clk 00:11:17]} {[%emt 00:00:05]} 6. e3 {[%clk 00:12:05]} {[%emt
00:00:03]} b6 {[%clk 00:10:04]} {[%emt 00:01:16]} 7. Rc1 {[%clk 00:11:30]}
{[%emt 00:00:37]} Nc6 {[%clk 00:10:03]} {[%emt 00:00:05]} 8. cxd5 {[%clk
00:11:02]} {[%emt 00:00:31]} exd5 {[%clk 00:09:49]} {[%emt 00:00:18]} 9. Qc2
{[%clk 00:10:33]} {[%emt 00:00:31]} Bb7 {[%clk 00:09:42]} {[%emt 00:00:11]} 10.
Bd3 {[%clk 00:10:20]} {[%emt 00:00:15]} Nb4 {[%clk 00:09:32]} {[%emt 00:00:13]}
11. Qb1 {[%clk 00:10:05]} {[%emt 00:00:18]} Nxd3+ {[%clk 00:08:56]} {[%emt
00:00:39]} 12. Qxd3 {[%clk 00:10:05]} {[%emt 00:00:03]} a5 {[%clk 00:08:49]}
{[%emt 00:00:10]} 13. O-O {[%clk 00:10:05]} {[%emt 00:00:03]} Ba6 {[%clk
00:08:52]} 14. Qc2 {[%clk 00:09:12]} {[%emt 00:00:55]} Bxf1 {[%clk 00:08:42]}
{[%emt 00:00:15]} 15. Kxf1 {[%clk 00:09:13]} Rc8 {[%clk 00:08:05]} {[%emt
00:00:40]} 16. Bxf6 {[%clk 00:08:38]} {[%emt 00:00:38]} Bxf6 {[%clk 00:08:01]}
{[%emt 00:00:07]} 17. Nxd5 {[%clk 00:08:34]} {[%emt 00:00:07]} Qxd5 {[%clk
00:07:56]} {[%emt 00:00:09]} 18. e4 {[%clk 00:08:35]} Qb5+ {[%clk 00:07:45]}
{[%emt 00:00:13]} 19. Kg1 {[%clk 00:08:33]} {[%emt 00:00:06]} Rfd8 {[%clk
00:07:33]} {[%emt 00:00:16]} 20. e5 {[%clk 00:08:21]} {[%emt 00:00:15]} Be7
{[%clk 00:07:18]} {[%emt 00:00:15]} 21. Qc6 {[%clk 00:08:02]} {[%emt 00:00:24]}
Qxc6 {[%clk 00:06:56]} {[%emt 00:00:26]} 22. Rxc6 {[%clk 00:08:02]} h6 {[%clk
00:06:58]} {[%emt 00:00:02]} 23. Kf1 {[%clk 00:07:55]} {[%emt 00:00:11]} f6
{[%clk 00:06:45]} {[%emt 00:00:16]} 24. Ke2 {[%clk 00:07:53]} {[%emt 00:00:05]}
fxe5 {[%clk 00:06:05]} {[%emt 00:00:43]} 25. dxe5 {[%clk 00:07:54]} Bc5 {[%clk
00:05:28]} {[%emt 00:00:38]} 26. Nh4 {[%clk 00:07:42]} {[%emt 00:00:18]} Re8
{[%clk 00:04:45]} {[%emt 00:00:44]} 27. f4 {[%clk 00:07:41]} {[%emt 00:00:06]}
Kf7 {[%clk 00:04:27]} {[%emt 00:00:21]} 28. g4 {[%clk 00:07:25]} {[%emt
00:00:19]} Re6 {[%clk 00:04:21]} {[%emt 00:00:09]} 29. Rxe6 {[%clk 00:07:23]}
{[%emt 00:00:05]} Kxe6 {[%clk 00:04:23]} {[%emt 00:00:01]} 30. Kf3 {[%clk
00:07:15]} {[%emt 00:00:10]} Rd8 {[%emt 00:00:24]} 0-1

[Event "Orlicka sachovnice 2023"]
[Site "Usti nad Orlici, Czech Republic"]
[Date "2023.05.06"]
[Round "9.5"]
[White "Kafka, Ondrej"]
[Black "Seidl, Vaclav"]
[Result "0-1"]
[TimeControl "12 min + 3 s"]
[WhiteElo "1271"]
[BlackElo "1373"]

1. d4 {[%clk 00:12:01]} {[%emt 00:00:05]} d6 {[%clk 00:12:02]} {[%emt
00:00:04]} 2. c4 {[%clk 00:11:57]} {[%emt 00:00:07]} Nf6 {[%clk 00:12:04]} 3.
Nc3 {[%clk 00:11:57]} {[%emt 00:00:03]} g6 {[%clk 00:12:06]} {[%emt 00:00:02]}
4. Nf3 {[%clk 00:11:57]} {[%emt 00:00:02]} Bg7 {[%clk 00:12:09]} 5. Bg5 {[%clk
00:11:57]} {[%emt 00:00:03]} O-O {[%clk 00:12:10]} {[%emt 00:00:02]} 6. e3
{[%clk 00:11:56]} {[%emt 00:00:04]} Bg4 {[%clk 00:12:10]} {[%emt 00:00:02]} 7.
Be2 {[%clk 00:11:55]} {[%emt 00:00:04]} Nbd7 {[%clk 00:12:12]} {[%emt
00:00:02]} 8. O-O {[%clk 00:11:55]} {[%emt 00:00:04]} c5 {[%clk 00:12:13]}
{[%emt 00:00:02]} 9. Qd2 {[%clk 00:11:16]} {[%emt 00:00:42]} Rc8 {[%clk
00:12:05]} {[%emt 00:00:12]} 10. h3 {[%clk 00:10:36]} {[%emt 00:00:45]} Bxf3
{[%clk 00:12:06]} 11. Bxf3 {[%clk 00:10:37]} b6 {[%emt 00:00:04]} 12. d5 {[%clk
00:10:13]} {[%emt 00:00:26]} Ne5 {[%clk 00:12:03]} {[%emt 00:00:06]} 13. Qe2
{[%clk 00:09:58]} {[%emt 00:00:18]} Nxf3+ {[%clk 00:11:09]} {[%emt 00:00:58]}
14. Qxf3 {[%clk 00:09:57]} {[%emt 00:00:03]} Nd7 {[%clk 00:11:10]} {[%emt
00:00:03]} 15. e4 {[%clk 00:09:47]} {[%emt 00:00:13]} Ne5 {[%clk 00:11:12]}
{[%emt 00:00:02]} 16. Qe3 {[%clk 00:09:42]} {[%emt 00:00:06]} Nxc4 {[%clk
00:11:07]} {[%emt 00:00:09]} 17. Qc1 {[%clk 00:09:16]} {[%emt 00:00:27]} a6
{[%clk 00:10:45]} {[%emt 00:00:26]} 18. b3 {[%clk 00:08:38]} {[%emt 00:00:41]}
Na5 {[%clk 00:09:58]} {[%emt 00:00:51]} 19. Bh6 {[%clk 00:08:37]} {[%emt
00:00:04]} b5 {[%clk 00:09:56]} {[%emt 00:00:05]} 20. Bxg7 {[%clk 00:08:34]}
{[%emt 00:00:08]} Kxg7 {[%clk 00:09:58]} 21. Qb2 {[%clk 00:08:36]} Kg8 {[%clk
00:09:57]} {[%emt 00:00:04]} 22. b4 {[%clk 00:07:07]} {[%emt 00:01:34]} Nc4
{[%emt 00:00:55]} 23. Qe2 {[%clk 00:06:27]} cxb4 {[%clk 00:09:32]} {[%emt
00:00:16]} 24. Nd1 {[%clk 00:06:23]} {[%emt 00:00:06]} Ne5 {[%clk 00:09:19]}
{[%emt 00:00:16]} 25. Rb1 {[%clk 00:06:06]} {[%emt 00:00:19]} Rc4 {[%clk
00:07:54]} {[%emt 00:01:27]} 26. f3 {[%clk 00:05:27]} {[%emt 00:00:44]} Qb6+
{[%clk 00:07:43]} {[%emt 00:00:14]} 27. Kh1 {[%clk 00:05:20]} {[%emt 00:00:03]}
a5 {[%clk 00:07:43]} {[%emt 00:00:11]} 28. Ne3 {[%clk 00:05:14]} {[%emt
00:00:08]} Rc5 {[%clk 00:07:06]} {[%emt 00:00:37]} 29. Rb3 {[%clk 00:04:59]}
{[%emt 00:00:21]} Rfc8 {[%clk 00:07:03]} {[%emt 00:00:06]} 30. Rfb1 {[%clk
00:04:50]} {[%emt 00:00:12]} Rc1+ {[%clk 00:07:03]} {[%emt 00:00:03]} 31. Kh2
{[%clk 00:04:46]} {[%emt 00:00:06]} Rxb1 {[%clk 00:06:34]} {[%emt 00:00:33]} 32.
Rxb1 {[%clk 00:04:45]} {[%emt 00:00:05]} Rc3 {[%clk 00:06:33]} {[%emt
00:00:03]} 33. Nd1 {[%clk 00:04:28]} {[%emt 00:00:19]} Rc5 {[%clk 00:05:20]}
{[%emt 00:01:15]} 34. Kh1 {[%clk 00:03:37]} {[%emt 00:00:53]} Qc7 {[%emt
00:00:14]} 35. Kh2 {[%clk 00:03:01]} {[%emt 00:00:38]} Rc2 {[%clk 00:05:01]}
{[%emt 00:00:14]} 36. Qxb5 {[%clk 00:02:52]} {[%emt 00:00:12]} Nxf3+ {[%clk
00:04:57]} {[%emt 00:00:07]} 37. Kg3 {[%clk 00:02:27]} {[%emt 00:00:24]} Nd4
{[%clk 00:04:34]} {[%emt 00:00:29]} 38. Qe8+ {[%clk 00:01:24]} {[%emt
00:01:07]} Kg7 {[%clk 00:04:36]} {[%emt 00:00:01]} 39. Qa4 {[%clk 00:00:54]}
{[%emt 00:00:32]} Rc1 {[%clk 00:03:43]} {[%emt 00:00:57]} 40. Rxc1 {[%clk
00:00:36]} {[%emt 00:00:21]} Qxc1 {[%clk 00:03:44]} {[%emt 00:00:02]} 41. Nf2
{[%clk 00:00:12]} {[%emt 00:00:26]} Qe3+ {[%clk 00:03:46]} {[%emt 00:00:02]} 42.
Kh2 {[%clk 00:00:13]} {[%emt 00:00:03]} Qxf2 {[%clk 00:03:46]} {[%emt
00:00:03]} 43. Qxa5 {[%clk 00:00:11]} {[%emt 00:00:05]} Nf3+ {[%clk 00:03:47]}
44. Kh1 {[%clk 00:00:08]} {[%emt 00:00:05]} Qg1# {[%clk 00:03:49]} {[%emt
00:00:02]} 0-1

[Event "Orlicka sachovnice 2023"]
[Site "Usti nad Orlici, Czech Republic"]
[Date "2023.05.06"]
[Round "9.7"]
[White "Vecerova, Hana"]
[Black "Trejtnar, Matej"]
[Result "1/2-1/2"]
[TimeControl "12 min + 3 s"]
[WhiteElo "1171"]
[BlackElo "1378"]

1. e4 {[%clk 00:00:00]} {[%emt 00:00:45]} e5 {[%clk 00:00:00]} {[%emt
00:00:02]} 2. Nf3 Nc6 {[%emt 00:00:03]} 3. Bc4 {[%clk 00:00:00]} {[%emt
00:00:02]} Bc5 {[%clk 00:00:00]} {[%emt 00:00:02]} 4. Nc3 Nf6 {[%emt 00:00:03]}
5. d3 {[%clk 00:00:00]} {[%emt 00:00:02]} d6 6. h3 Bd7 {[%clk 00:00:00]} {[%emt
00:00:07]} 7. Bg5 {[%clk 00:00:00]} {[%emt 00:00:02]} h6 {[%emt 00:00:03]} 8.
Bh4 {[%emt 00:00:01]} g5 {[%clk 00:00:00]} {[%emt 00:00:02]} 9. Bg3 {[%clk
00:00:00]} {[%emt 00:00:05]} Qe7 {[%clk 00:00:00]} {[%emt 00:00:02]} 10. Bd5
{[%clk 00:00:00]} {[%emt 00:00:06]} a6 {[%clk 00:00:00]} {[%emt 00:00:10]} 11.
O-O {[%clk 00:00:00]} {[%emt 00:00:11]} Bb4 {[%clk 00:00:00]} {[%emt 00:00:15]}
12. a3 {[%clk 00:11:59]} {[%emt 00:00:52]} Ba5 {[%clk 00:12:03]} {[%emt
00:00:03]} 13. b4 {[%clk 00:12:01]} {[%emt 00:00:02]} Bb6 {[%clk 00:12:03]}
{[%emt 00:00:02]} 1/2-1/2